Workbook

Sheet QAAG - Trust
A1: Metric | B1: Units | C1: Source | D1: CQC Domain | E1: Benchmark | F1: Top Quartile Average | G1: YTD | H1: Q1 16/17 | I1: Trend Apr16- June 16 | J1: 2016-04-01 | K1: 2016-05-01 | L1: 2016-06-01
A2: SAFE AMBITION 1: Reduction of Harm Associated with Mortality
A3: HSMR (April 15 - March 16) | B3: Ratio | C3: Dr Foster | D3: Safe | E3: 100 | G3: 101.46 | H3: 101.46 | J3: 99.54 | K3: 99.88 | L3: 101.46
A4: SHMI (Jan 15 - Dec 15) | B4: Ratio | C4: Dr Foster | D4: Safe | E4: 100 | G4: 110.99 | H4: 110.99 | J4: 111.21 | K4: 111.21 | L4: 110.99
A5: Crude Mortality (HSMR basket 56 diagnosis) (June 16) | B5: Mthly Number | C5: Dr Foster | D5: Safe | G5: =AVERAGE(J5:L5) -> 0.01656666667 | H5: =AVERAGE(J5:M5) -> 0.01656666667 | J5: 0.0181 | K5: 0.017 | L5: 0.0146
A6: SAFE AMBITION 2: Reduction of Harm Associated with Harm Free Care
A7: Harm free care (new & old) | B7: Mthly % | C7: ST | E7: 0.95 | F7: 0.945 | G7: =AVERAGE(J7:L7) -> 0.92 | H7: =AVERAGE(J7:M7) -> 0.92 | J7: 0.9175 | K7: 0.9133 | L7: 0.9292
A8: Harm free care (new) | B8: Mthly % | C8: ST | E8: 0.98 | F8: 0.98 | G8: =AVERAGE(J8:L8) -> 0.9692 | H8: =AVERAGE(J8:M8) -> 0.9692 | J8: 0.9751 | K8: 0.9561 | L8: 0.9764
A9: SAFE AMBITION 3: Reduction of Harm Associated with Falls
A10: Falls per 1000 OBD | B10: Mthly % | C10: Datix | D10: Safe | E10: 0.039 | F10: 0.039 | G10: =AVERAGE(J10:L10) -> 0.0379 | H10: =AVERAGE(J10:M10) -> 0.0379 | J10: 0.0326 | K10: 0.0389 | L10: 0.0422
A11: Falls with harm per 1000 OBD | B11: Mthly % | C11: Datix | D11: Safe | E11: 0.0019 | F11: 0.0019 | G11: 0.005333333333 | H11: =AVERAGE(J11:M11) -> 0.005333333333 | J11: 0.0101 | K11: 0.0033 | L11: 0.0026
A12: Combined SQD Metrics (Falls) | B12: Mthly % | C12: SQD | D12: Safe | E12: 0.9 | G12: 0.7113 | H12: 0.7113 | K12: 0.7097 | L12: 0.7129
A13: SAFE AMBITION 4: Reduction of Harm Associated with Pressure Ulcers
A14: Category 4 hospital acquired incidents | B14: Mthly Number | C14: PUNT | D14: Safe | E14: 0 | F14: 0 | G14: =SUM(J14:L14) -> 4 | H14: =SUM(J14:M14) -> 4 | J14: 0 | K14: 2 | L14: 2
A15: Category 3 hospital acquired incidents | B15: Mthly Number | C15: PUNT | D15: Safe | E15: 0 | F15: 0 | G15: 8 | H15: =SUM(J15:M15) -> 8 | J15: 1 | K15: 4 | L15: 3
A16: Category 2 hospital acquired incidents | B16: Mthly Number | C16: PUNT | D16: Safe | E16: 27 | G16: 100 | H16: =SUM(J16:M16) -> 100 | J16: 27 | K16: 39 | L16: 34
A17: Pressure ulcers per 1000 OBD | B17: Mthly % | C17: IS | D17: Safe | E17: TBC | F17: TBC | J17: TBC | K17: TBC | L17: TBC
A18: Tissue viability compliance | B18: Mthly % | C18: SQD | D18: Effective | E18: 0.9 | G18: =AVERAGE(J12:L12) -> 0.7113 | H18: =AVERAGE(K12:M12) -> 0.7113 | K18: 0.9274 | L18: 0.9152
A19: SAFE AMBITION 5: Reduction of Harm Associated with Medication
A20: Medication incidents | B20: Mthly Number | C20: Datix | D20: Safe | G20: =SUM(J20:L20) -> 340 | H20: =SUM(J20:M20) -> 340 | J20: 108 | K20: 110 | L20: 122
A21: Medication incidents resulting in harm (Low,Moderate, Severe & Death) | B21: Mthly Number | C21: Datix | D21: Safe | E21: 0 | F21: 0 | G21: =SUM(J21:L21) -> 36 | H21: =SUM(J21:M21) -> 36 | J21: 12 | K21: 9 | L21: 15
A22: Medication errors per 1000 OBD | B22: Mthly % | C22: Datix | D22: Safe | E22: TBC | F22: TBC | G22: =AVERAGE(J22:L22) -> 3.266666667 | H22: =AVERAGE(J22:M22) -> 3.266666667 | J22: 3.45 | K22: 2.9 | L22: 3.45
A23: CD Audit Compliance (Q1 April - June 16) | B23: Mthly % | C23: Pharmacy | E23: 1 | F23: 1 | G23: =AVERAGE(J12:L12) -> 0.7113 | H23: =AVERAGE(K12:M12) -> 0.7113 | J23: 0.82 | L23: 0.76
A24: SAFE AMBITION 6: Reduction of Harm Associated with Infections
A25: MRSA Cases | B25: Mthly Number | C25: IPC | D25: Safe | E25: 0 | F25: 0 | G25: =SUM(J25:L25) -> 1 | H25: =SUM(J25:M25) -> 1 | J25: 0 | K25: 1 | L25: 0
A26: C difficile Cases | B26: Mthly Number | C26: IPC | D26: Safe | E26: 46 | G26: 11 | H26: =SUM(J26:M26) -> 11 | J26: 1 | K26: 5 | L26: 5
A27: CAUTIs | B27: Mthly Number | C27: ST | D27: Safe | E27: 2 | F27: TBC | G27: 4 | H27: =SUM(J27:M27) -> 4 | J27: 1 | K27: 2 | L27: 1
A28: Service trac | B28: Mthly % | C28: Facilities | E28: 0.95 | F28: 0.98 | G28: =AVERAGE(J28:L28) -> 0.8458 | H28: =AVERAGE(J28:M28) -> 0.8458 | J28: 0.81 | K28: 0.85 | L28: 0.8774
A29: SAFE AMBITION 7: Reduction of Harm Associated with Deterioration
A30: Sepsis Bundle compliance in A&E / Emergency wards | B30: Mthly % | C30: QG | D30: Effective | E30: 0.9 | G30: =AVERAGE(J30:L30) -> 0.7311 | H30: =AVERAGE(J30:M30) -> 0.7311 | J30: 0.66 | K30: 0.7426 | L30: 0.7907
A31: IVAB within 1 hour for sepsis in A&E / Emergency wards | B31: Mthly % | C31: QG | D31: Effective | E31: 0.9 | G31: =AVERAGE(J31:L31) -> 0.3804666667 | H31: =AVERAGE(J31:M31) -> 0.3804666667 | J31: 0.381 | K31: 0.3816 | L31: 0.3788
A32: VTE rate | B32: Mthly Number | C32: ST | E32: TBC | G32: =SUM(J32:L32) -> 6 | H32: =SUM(J32:M32) -> 6 | J32: 2 | K32: 3 | L32: 1
A33: VTE risk assessments completed on admission | B33: Mthly % | C33: Medway | D33: Effective | E33: >95% | F33: 1 | G33: =AVERAGE(J33:L33) -> 0.9645666667 | H33: =AVERAGE(J33:M33) -> 0.9645666667 | J33: 0.9673 | K33: 0.9664 | L33: 0.96
A34: Physiological observations on time | B34: Mthly % | C34: SQD | D34: Effective | E34: 0.9 | G34: =AVERAGE(J34:L34) -> 0.7915 | H34: =AVERAGE(K34:M34) -> 0.7915 | K34: 0.792 | L34: 0.791
A35: Cardiac Arrests outside of the Emergency Department (not including peri-arrests) | B35: Mthly Number | C35: Resus | D35: Effective | E35: TBC | G35: =SUM(J35:L35) -> 43 | H35: 43 | J35: 13 | K35: 15 | L35: 15
A36: DNACPR compliance | B36: Mthly % | C36: SQD | D36: Effective | E36: 0.9 | G36: =AVERAGE(J36:L36) -> 0.9531 | H36: =AVERAGE(K36:M36) -> 0.9531 | K36: 0.9666 | L36: 0.9396
A37: SAFE AMBITION 8: Reduction of Harm Associated with Surgery
A38: Compliance WHO checklist completion | B38: Mthly % | C38: QG | D38: Effective | E38: 1 | G38: =AVERAGE(J38:L38) -> 0.983 | H38: =AVERAGE(J38:M38) -> 0.983 | J38: 0.993 | K38: 0.969 | L38: 0.987
A39: SAFE AMBITION 9: Reduction of Harm by Building a Positive Patient Safety Culture
A40: Incidents reported | B40: Mthly Number | C40: DATIX | D40: Well Led | G40: =SUM(J40:L40) -> 3426 | H40: =SUM(J40:M40) -> 3426 | J40: 1054 | K40: 1134 | L40: 1238
A41: Never Events | B41: Mthly Number | C41: DATIX | D41: Well Led | E41: 0 | G41: 1 | H41: =SUM(J41:M41) -> 1 | J41: 0 | K41: 0 | L41: 1
A42: Incidents reported on STEIS | B42: Mthly Number | C42: STEIS | D42: Well Led | E42: TBC | G42: 18 | H42: =SUM(J42:M42) -> 18 | J42: 8 | K42: 5 | L42: 5
A43: Incidents resulting in severe harm / death | B43: Mthly Number | C43: DATIX | D43: Well Led | E43: TBC | G43: 54 | H43: =SUM(J43:M43) -> 54 | J43: 9 | K43: 24 | L43: 21
A44: Duty of Candour compliance | B44: Mthly % | C44: DATIX | D44: Well Led | E44: 1 | F44: 1 | G44: =AVERAGE(J44:L44) -> 0.5033333333 | H44: =AVERAGE(J44:M44) -> 0.5033333333 | J44: 0.17 | K44: 0.67 | L44: 0.67
A45: Serious incidents relating to sub-optimal care | B45: Mthly Number | C45: DATIX | D45: Effective | E45: TBC | G45: TBC | H45: TBC | J45: TBC | K45: TBC | L45: TBC
A46: CARING AMBITION 10: Improvement of Patient Experience Associated with Reduction of Complaints
A47: Complaints | B47: Mthly Number | C47: DATIX | G47: =SUM(J47:L47) -> 198 | H47: =SUM(J47:M47) -> 198 | J47: 72 | K47: 63 | L47: 63
A48: PALS | B48: Mthly Number | C48: Pt Exp | G48: =SUM(J48:L48) -> 1046 | H48: =SUM(J48:M48) -> 1046 | J48: 367 | K48: 326 | L48: 353
A49: CARING AMBITION 11: Reduction of Harm by Improving the Patient Experience
A50: Inpatient FFT Recommend | B50: Mthly % | C50: Pt Exp | E50: 0.94 | F50: 0.96 | G50: =AVERAGE(J50:L50) -> 0.8833333333 | H50: =AVERAGE(J50:M50) -> 0.8833333333 | J50: 0.88 | K50: 0.88 | L50: 0.89
A51: Day Case FFT Recommend | B51: Mthly % | C51: Pt Exp | E51: 0.88 | F51: 0.87 | G51: =AVERAGE(J51:L51) -> 0.95 | H51: =AVERAGE(J51:M51) -> 0.95 | J51: 0.96 | K51: 0.95 | L51: 0.94
A52: Emergency Services FFT Recommend | B52: Mthly % | C52: Pt Exp | E52: 0.88 | F52: 0.87 | G52: 0.8066666667 | H52: =AVERAGE(J52:M52) -> 0.8066666667 | J52: 0.81 | K52: 0.82 | L52: 0.79
A53: Maternity (Birth) FFT Recommend | B53: Mthly % | C53: Pt Exp | E53: 0.97 | F53: 0.96 | G53: 0.97 | H53: =AVERAGE(J53:M53) -> 0.97 | J53: 1 | K53: 1 | L53: 0.91
A54: Outpatient FFT Recommend | B54: Mthly % | C54: Pt Exp | E54: 0.92 | F54: 0.92 | G54: 0.92 | H54: =AVERAGE(J54:M54) -> 0.92 | J54: 0.92 | K54: 0.92 | L54: 0.92
A55: Mixed Sex Accomodation | B55: Mthly Number | C55: DATIX | E55: 0 | F55: 0 | G55: =SUM(J55:L55) -> 15 | H55: =SUM(J55:M55) -> 15 | J55: 10 | K55: 2 | L55: 3
A56: EFFECTIVE AMBITION 13: Reduction of Harm Associated with Timeliness of Communication to GP
A57: eDD compliance | B57: Mthly % | C57: IS | E57: 0.95 | F57: 0.95 | G57: =AVERAGE(J57:L57) -> 0.7560666667 | H57: =AVERAGE(J57:M57) -> 0.7560666667 | J57: 0.7402 | K57: 0.7672 | L57: 0.7608
A58: EFFECTIVE AMBITION 13: Reduction of Harm Associated with Maternity
A59: Number of Births | B59: Mthly number | C59: Maternity | E59: 500 | G59: =SUM(J59:L59) -> 1325 | H59: =SUM(J59:M59) -> 1325 | J59: 427 | K59: 445 | L59: 453
A60: Normal Birth Rate | B60: Mthly % | C60: Maternity | E60: > 63.5% | G60: =AVERAGE(J60:L60) -> 0.5839666667 | H60: =AVERAGE(J60:M60) -> 0.5839666667 | J60: 0.5644 | K60: 0.618 | L60: 0.5695
A61: Section Rate | B61: Mthly % | C61: Maternity | E61: < 20.7% | G61: =AVERAGE(J61:L61) -> 0.2560666667 | H61: =AVERAGE(J61:M61) -> 0.2560666667 | J61: 0.2482 | K61: 0.2404 | L61: 0.2796
A62: Number of Induction | B62: Mthly % | C62: Maternity | E62: 0.3 | G62: 0.2689 | H62: =AVERAGE(J62:M62) -> 0.2689 | J62: 0.3144 | K62: 0.1769 | L62: 0.3154
A63: Number of still births | B63: Mthly number | C63: Maternity | E63: < 1 mth | G63: =SUM(J63:L63) -> 5 | H63: =SUM(J63:M63) -> 5 | J63: 3 | K63: 1 | L63: 1
A64: PPH >2 lit | B64: Mthly number | C64: Maternity | E64: < 11 mth | G64: 15 | H64: =SUM(J64:M64) -> 15 | J64: 4 | K64: 6 | L64: 5
A65: Numner of times unit closed | B65: Mthly number | C65: Maternity | E65: < 1 mth | G65: 1 | H65: =SUM(J65:M65) -> 1 | J65: 0 | K65: 1 | L65: 0

Sheet Key (hidden)
A1: Key Identifiers
A3: All Reports
A4: Black Text is Trust or Site Level data Only
A5: Purple Text holds data that transcends to Ward analysis
A8: Trust Report
A10: Bold and underline headings link into the Quality Report.
B14: = Outside the Trust and National Target
B15: = Is within the Trust and National Target
A18: Methodology for Heat Map
